[Event "Titled Tuesday Blitz February 15 Early 2022"]
[White "Mejia, Cherry Ann"]
[Black "Ronka, Erik"]
[WhiteFideId "5206880"]
[BlackFideId "505080"]
[WhiteElo "2007"]
[BlackElo "2264"]
[Result "0-1"]
[Round "06"]
[TimeControl "180+1"]
[Date "2022.02.15"]
[WhiteClock "0:00:03"]
[BlackClock "0:00:23"]

1. e4 {[%clk 0:03:00]}  c5 {[%clk 0:02:59]} 2. Nc3 {[%clk 0:03:00]}  d6 {[%clk 0:02:58]} 3. g3 {[%clk 0:03:00]}  g6 {[%clk 0:02:58]} 4. Bg2 {[%clk 0:03:00]}  Bg7 {[%clk 0:02:59]} 5. d3 {[%clk 0:03:00]}  Nc6 {[%clk 0:02:59]} 6. Be3 {[%clk 0:02:59]}  e5 {[%clk 0:02:59]} 7. Qd2 {[%clk 0:02:58]}  Nge7 {[%clk 0:03:00]} 8. Bh6 {[%clk 0:02:57]}  Bxh6 {[%clk 0:03:00]} 9. Qxh6 {[%clk 0:02:58]}  Nd4 {[%clk 0:03:01]} 10. Rc1 {[%clk 0:02:58]}  Qb6 {[%clk 0:02:41]} 11. Nd1 {[%clk 0:02:43]}  Bg4 {[%clk 0:02:23]} 12. f3 {[%clk 0:02:38]}  Be6 {[%clk 0:02:23]} 13. c3 {[%clk 0:02:36]}  Ndc6 {[%clk 0:02:22]} 14. b3 {[%clk 0:02:28]}  d5 {[%clk 0:02:16]} 15. Ne2 {[%clk 0:02:20]}  O-O-O {[%clk 0:02:15]} 16. Ne3 {[%clk 0:01:53]}  dxe4 {[%clk 0:01:44]} 17. dxe4 {[%clk 0:01:54]}  c4 {[%clk 0:01:38]} 18. b4 {[%clk 0:01:23]}  Rd3 {[%clk 0:01:35]} 19. Nd1 {[%clk 0:01:04]}  Rhd8 {[%clk 0:01:26]} 20. a4 {[%clk 0:00:58]}  Nxb4 {[%clk 0:00:55]} 21. cxb4 {[%clk 0:00:53]}  Qxb4+ {[%clk 0:00:51]} 22. Nec3 {[%clk 0:00:52]}  Qc5 {[%clk 0:00:44]} 23. Nf2 {[%clk 0:00:25]}  Re3+ {[%clk 0:00:44]} 24. Ne2 {[%clk 0:00:25]}  Qb4+ {[%clk 0:00:37]} 25. Kf1 {[%clk 0:00:20]}  Qd2 {[%clk 0:00:35]} 26. Re1 {[%clk 0:00:16]}  Rxe2 {[%clk 0:00:34]} 27. Qxd2 {[%clk 0:00:12]}  Rexd2 {[%clk 0:00:34]} 28. Bh3 {[%clk 0:00:06]}  Bxh3+ {[%clk 0:00:29]} 29. Nxh3 {[%clk 0:00:07]}  f6 {[%clk 0:00:29]} 30. Rg1 {[%clk 0:00:07]}  Nc6 {[%clk 0:00:29]} 31. Rg2 {[%clk 0:00:07]}  a6 {[%clk 0:00:29]} 32. Rxd2 {[%clk 0:00:06]}  Rxd2 {[%clk 0:00:29]} 33. Re2 {[%clk 0:00:05]}  Rd4 {[%clk 0:00:24]} 34. Kf2 {[%clk 0:00:04]}  b5 {[%clk 0:00:25]} 35. axb5 {[%clk 0:00:03]}  axb5 {[%clk 0:00:26]} 36. Ng1 {[%clk 0:00:03]}  b4 {[%clk 0:00:25]} 37. f4 {[%clk 0:00:03]}  b3 {[%clk 0:00:23]} 38. Nf3 {[%clk 0:00:04]}  Rd3 {[%clk 0:00:23]} 39. fxe5 {[%clk 0:00:03]}  fxe5 {[%clk 0:00:23]} 40. Ke1 {[%clk 0:00:03]}  c3 {[%clk 0:00:23]} 0-1


[Site "https://www.chess.com"]

[Event "Titled Tuesday Blitz February 15 Early 2022"]
[White "Mirzanurov, Bulat"]
[Black "Bashirli, Saadat"]
[WhiteFideId "4184521"]
[BlackFideId "13429990"]
[WhiteElo "2116"]
[BlackElo "1173"]
[Result "0-1"]
[Round "06"]
[TimeControl "180+1"]
[Date "2022.02.15"]
[WhiteClock "0:02:14"]
[BlackClock "0:02:36"]

1. e4 {[%clk 0:02:57]}  c5 {[%clk 0:02:58]} 2. Nf3 {[%clk 0:02:55]}  g6 {[%clk 0:02:56]} 3. d4 {[%clk 0:02:54]}  cxd4 {[%clk 0:02:56]} 4. Nxd4 {[%clk 0:02:55]}  Nc6 {[%clk 0:02:56]} 5. c4 {[%clk 0:02:49]}  Nf6 {[%clk 0:02:54]} 6. Nc3 {[%clk 0:02:48]}  Nxd4 {[%clk 0:02:53]} 7. Qxd4 {[%clk 0:02:47]}  d6 {[%clk 0:02:53]} 8. Be2 {[%clk 0:02:43]}  Bg7 {[%clk 0:02:52]} 9. O-O {[%clk 0:02:42]}  O-O {[%clk 0:02:51]} 10. Be3 {[%clk 0:02:35]}  Ng4 {[%clk 0:02:49]} 11. Qd2 {[%clk 0:02:34]}  Nxe3 {[%clk 0:02:49]} 12. Qxe3 {[%clk 0:02:34]}  Bd7 {[%clk 0:02:47]} 13. Kh1 {[%clk 0:02:33]}  a5 {[%clk 0:02:46]} 14. f4 {[%clk 0:02:33]}  a4 {[%clk 0:02:46]} 15. a3 {[%clk 0:02:29]}  Qa5 {[%clk 0:02:45]} 16. Rac1 {[%clk 0:02:28]}  Rac8 {[%clk 0:02:41]} 17. Nd5 {[%clk 0:02:26]}  Rfe8 {[%clk 0:02:39]} 18. Rc2 {[%clk 0:02:14]}  e6 {[%clk 0:02:36]} 0-1


[Site "https://www.chess.com"]

[Event "Titled Tuesday Blitz February 15 Early 2022"]
[White "Narayanan.S.L"]
[Black "Paravyan, David"]
[WhiteFideId "5058422"]
[BlackFideId "4194985"]
[WhiteElo "2494"]
[BlackElo "2569"]
[Result "0-1"]
[Round "06"]
[TimeControl "180+1"]
[Date "2022.02.15"]
[WhiteClock "0:00:02"]
[BlackClock "0:00:03"]

1. Nf3 {[%clk 0:03:00]}  Nf6 {[%clk 0:02:59]} 2. g3 {[%clk 0:03:00]}  c5 {[%clk 0:02:59]} 3. Bg2 {[%clk 0:03:00]}  Nc6 {[%clk 0:02:56]} 4. c4 {[%clk 0:03:00]}  d5 {[%clk 0:02:55]} 5. cxd5 {[%clk 0:02:59]}  Nxd5 {[%clk 0:02:56]} 6. d4 {[%clk 0:02:57]}  cxd4 {[%clk 0:02:53]} 7. Nxd4 {[%clk 0:02:57]}  Ndb4 {[%clk 0:02:53]} 8. Nxc6 {[%clk 0:02:57]}  Qxd1+ {[%clk 0:02:52]} 9. Kxd1 {[%clk 0:02:57]}  Nxc6 {[%clk 0:02:53]} 10. Nc3 {[%clk 0:02:57]}  Bf5 {[%clk 0:02:49]} 11. Bxc6+ {[%clk 0:02:37]}  bxc6 {[%clk 0:02:46]} 12. Be3 {[%clk 0:02:37]}  e5 {[%clk 0:02:43]} 13. f3 {[%clk 0:02:36]}  Bb4 {[%clk 0:02:38]} 14. Rc1 {[%clk 0:02:36]}  Ke7 {[%clk 0:02:30]} 15. Ke1 {[%clk 0:02:34]}  Rhb8 {[%clk 0:02:30]} 16. b3 {[%clk 0:02:11]}  Ba3 {[%clk 0:02:13]} 17. Rd1 {[%clk 0:02:11]}  Bb4 {[%clk 0:02:13]} 18. Rc1 {[%clk 0:02:12]}  Ba3 {[%clk 0:01:26]} 19. Rd1 {[%clk 0:02:11]}  Bb4 {[%clk 0:01:24]} 20. Bd2 {[%clk 0:01:59]}  a5 {[%clk 0:00:45]} 21. e4 {[%clk 0:01:42]}  Be6 {[%clk 0:00:28]} 22. Na4 {[%clk 0:01:40]}  c5 {[%clk 0:00:26]} 23. Rc1 {[%clk 0:00:55]}  c4 {[%clk 0:00:22]} 24. bxc4 {[%clk 0:00:49]}  Ba3 {[%clk 0:00:22]} 25. Rd1 {[%clk 0:00:41]}  Bxc4 {[%clk 0:00:21]} 26. Nc3 {[%clk 0:00:42]}  Rd8 {[%clk 0:00:17]} 27. f4 {[%clk 0:00:33]}  Bb4 {[%clk 0:00:12]} 28. fxe5 {[%clk 0:00:32]}  Ke6 {[%clk 0:00:11]} 29. Nd5 {[%clk 0:00:10]}  Bxd5 {[%clk 0:00:07]} 30. exd5+ {[%clk 0:00:11]}  Rxd5 {[%clk 0:00:08]} 31. Bxb4 {[%clk 0:00:09]}  axb4 {[%clk 0:00:09]} 32. Rxd5 {[%clk 0:00:08]}  Kxd5 {[%clk 0:00:10]} 33. Rf1 {[%clk 0:00:08]}  Ra7 {[%clk 0:00:05]} 34. Rf4 {[%clk 0:00:08]}  Rxa2 {[%clk 0:00:04]} 35. Rxf7 {[%clk 0:00:02]}  b3 {[%clk 0:00:03]} 36. Kd1 {[%clk 0:00:02]}  Ra1+ {[%clk 0:00:03]} 0-1


[Site "https://www.chess.com"]

[Event "Titled Tuesday Blitz February 15 Early 2022"]
[White "Navara, David"]
[Black "Daneshvar, Bardiya"]
[WhiteFideId "309095"]
[BlackFideId "12576468"]
[WhiteElo "2686"]
[BlackElo "2295"]
[Result "1-0"]
[Round "06"]
[TimeControl "180+1"]
[Date "2022.02.15"]
[WhiteClock "0:00:06"]
[BlackClock "0:00:10"]

1. d4 {[%clk 0:03:00]}  d5 {[%clk 0:02:55]} 2. c4 {[%clk 0:03:01]}  c6 {[%clk 0:02:55]} 3. Nf3 {[%clk 0:03:00]}  Nf6 {[%clk 0:02:55]} 4. e3 {[%clk 0:02:59]}  Bf5 {[%clk 0:02:53]} 5. Nc3 {[%clk 0:02:59]}  e6 {[%clk 0:02:53]} 6. Nh4 {[%clk 0:02:57]}  Be4 {[%clk 0:02:50]} 7. f3 {[%clk 0:02:58]}  Bg6 {[%clk 0:02:50]} 8. Qb3 {[%clk 0:02:58]}  Qc7 {[%clk 0:02:50]} 9. Bd2 {[%clk 0:02:57]}  Nbd7 {[%clk 0:02:50]} 10. cxd5 {[%clk 0:02:56]}  exd5 {[%clk 0:02:46]} 11. e4 {[%clk 0:02:26]}  dxe4 {[%clk 0:02:42]} 12. Nxg6 {[%clk 0:02:27]}  hxg6 {[%clk 0:02:36]} 13. fxe4 {[%clk 0:02:28]}  Ng4 {[%clk 0:01:58]} 14. e5 {[%clk 0:01:53]}  Nxh2 {[%clk 0:01:46]} 15. O-O-O {[%clk 0:01:46]}  Rh4 {[%clk 0:01:10]} 16. g3 {[%clk 0:01:18]}  Rxd4 {[%clk 0:01:05]} 17. Rxh2 {[%clk 0:01:18]}  Nxe5 {[%clk 0:01:02]} 18. Bf4 {[%clk 0:00:45]}  Rxd1+ {[%clk 0:00:56]} 19. Qxd1 {[%clk 0:00:46]}  f6 {[%clk 0:00:40]} 20. Bxe5 {[%clk 0:00:42]}  fxe5 {[%clk 0:00:41]} 21. Qg4 {[%clk 0:00:37]}  Qf7 {[%clk 0:00:34]} 22. Bd3 {[%clk 0:00:34]}  Ke7 {[%clk 0:00:26]} 23. Bxg6 {[%clk 0:00:32]}  Qf1+ {[%clk 0:00:26]} 24. Kc2 {[%clk 0:00:28]}  Rd8 {[%clk 0:00:25]} 25. Qh4+ {[%clk 0:00:16]}  Qf6 {[%clk 0:00:23]} 26. Ne4 {[%clk 0:00:16]}  Qxh4 {[%clk 0:00:22]} 27. gxh4 {[%clk 0:00:17]}  Ke6 {[%clk 0:00:21]} 28. Rf2 {[%clk 0:00:17]}  Be7 {[%clk 0:00:19]} 29. h5 {[%clk 0:00:15]}  Rd4 {[%clk 0:00:17]} 30. Rf7 {[%clk 0:00:13]}  Rc4+ {[%clk 0:00:12]} 31. Kd3 {[%clk 0:00:11]}  Rd4+ {[%clk 0:00:12]} 32. Ke3 {[%clk 0:00:10]}  Rd7 {[%clk 0:00:12]} 33. Rxg7 {[%clk 0:00:07]}  Kd5 {[%clk 0:00:10]} 34. Nf6+ {[%clk 0:00:06]} 1-0


[Site "https://www.chess.com"]

[Event "Titled Tuesday Blitz February 15 Early 2022"]
[White "Nazari, Arad"]
[Black "Korkmaz, Necmettin"]
[WhiteFideId "12577324"]
[BlackFideId "6303285"]
[WhiteElo "2120"]
[BlackElo "2094"]
[Result "0-1"]
[Round "06"]
[TimeControl "180+1"]
[Date "2022.02.15"]
[WhiteClock "0:00:03"]
[BlackClock "0:00:16"]

1. e4 {[%clk 0:03:00]}  e5 {[%clk 0:02:58]} 2. Nf3 {[%clk 0:02:52]}  Nc6 {[%clk 0:02:58]} 3. Bb5 {[%clk 0:02:50]}  a6 {[%clk 0:02:56]} 4. Bxc6 {[%clk 0:02:49]}  dxc6 {[%clk 0:02:55]} 5. O-O {[%clk 0:02:49]}  Bg4 {[%clk 0:02:41]} 6. h3 {[%clk 0:02:47]}  h5 {[%clk 0:02:41]} 7. d3 {[%clk 0:02:48]}  Qf6 {[%clk 0:02:39]} 8. Nbd2 {[%clk 0:02:48]}  Ne7 {[%clk 0:02:31]} 9. Qe2 {[%clk 0:02:10]}  Ng6 {[%clk 0:02:28]} 10. Qe3 {[%clk 0:02:10]}  Nf4 {[%clk 0:02:04]} 11. Kh2 {[%clk 0:01:26]}  g5 {[%clk 0:01:31]} 12. d4 {[%clk 0:01:00]}  Bxf3 {[%clk 0:01:12]} 13. Nxf3 {[%clk 0:00:58]}  Bd6 {[%clk 0:01:12]} 14. dxe5 {[%clk 0:00:51]}  Bxe5 {[%clk 0:01:12]} 15. Nxe5 {[%clk 0:00:51]}  Qxe5 {[%clk 0:01:12]} 16. Qg3 {[%clk 0:00:48]}  O-O-O {[%clk 0:01:06]} 17. Kh1 {[%clk 0:00:35]}  Qxe4 {[%clk 0:01:02]} 18. Be3 {[%clk 0:00:35]}  Rhg8 {[%clk 0:00:55]} 19. Rfe1 {[%clk 0:00:27]}  h4 {[%clk 0:00:45]} 20. Qg4+ {[%clk 0:00:23]}  f5 {[%clk 0:00:46]} 21. Qf3 {[%clk 0:00:21]}  Qxf3 {[%clk 0:00:45]} 22. gxf3 {[%clk 0:00:21]}  Nxh3 {[%clk 0:00:45]} 23. Kg2 {[%clk 0:00:21]}  g4 {[%clk 0:00:45]} 24. f4 {[%clk 0:00:21]}  Rde8 {[%clk 0:00:40]} 25. Bd2 {[%clk 0:00:18]}  b6 {[%clk 0:00:34]} 26. Rad1 {[%clk 0:00:16]}  Re4 {[%clk 0:00:29]} 27. Rxe4 {[%clk 0:00:15]}  fxe4 {[%clk 0:00:30]} 28. Re1 {[%clk 0:00:15]}  Re8 {[%clk 0:00:29]} 29. f5 {[%clk 0:00:15]}  Kd7 {[%clk 0:00:27]} 30. f6 {[%clk 0:00:12]}  Re6 {[%clk 0:00:25]} 31. f7 {[%clk 0:00:12]}  Ke7 {[%clk 0:00:26]} 32. Be3 {[%clk 0:00:08]}  Kxf7 {[%clk 0:00:25]} 33. Rd1 {[%clk 0:00:08]}  Re7 {[%clk 0:00:21]} 34. Rd4 {[%clk 0:00:08]}  Kf6 {[%clk 0:00:19]} 35. Rd8 {[%clk 0:00:08]}  Rf7 {[%clk 0:00:18]} 36. Rh8 {[%clk 0:00:09]}  Kf5 {[%clk 0:00:17]} 37. Rxh4 {[%clk 0:00:09]}  Nf4+ {[%clk 0:00:17]} 38. Kg3 {[%clk 0:00:09]}  Ne2+ {[%clk 0:00:16]} 39. Kg2 {[%clk 0:00:09]}  Nf4+ {[%clk 0:00:16]} 40. Kg3 {[%clk 0:00:10]}  Ne6 {[%clk 0:00:16]} 41. Rh5+ {[%clk 0:00:10]}  Kf6 {[%clk 0:00:16]} 42. Rh6+ {[%clk 0:00:10]}  Ke7 {[%clk 0:00:16]} 43. Kxg4 {[%clk 0:00:10]}  c5 {[%clk 0:00:15]} 44. Rh8 {[%clk 0:00:09]}  Kd7 {[%clk 0:00:16]} 45. Rh6 {[%clk 0:00:08]}  a5 {[%clk 0:00:15]} 46. c3 {[%clk 0:00:08]}  b5 {[%clk 0:00:15]} 47. Kg3 {[%clk 0:00:09]}  a4 {[%clk 0:00:15]} 48. Rh4 {[%clk 0:00:09]}  Rg7+ {[%clk 0:00:12]} 49. Kh3 {[%clk 0:00:09]}  Ng5+ {[%clk 0:00:12]} 50. Bxg5 {[%clk 0:00:09]}  Rxg5 {[%clk 0:00:13]} 51. Rxe4 {[%clk 0:00:10]}  Rd5 {[%clk 0:00:14]} 52. Re2 {[%clk 0:00:09]}  Rd3+ {[%clk 0:00:13]} 53. Kg2 {[%clk 0:00:09]}  a3 {[%clk 0:00:13]} 54. bxa3 {[%clk 0:00:08]}  Rxc3 {[%clk 0:00:14]} 55. Rd2+ {[%clk 0:00:08]}  Kc6 {[%clk 0:00:14]} 56. f4 {[%clk 0:00:09]}  Rxa3 {[%clk 0:00:14]} 57. f5 {[%clk 0:00:09]}  Ra8 {[%clk 0:00:14]} 58. Kf3 {[%clk 0:00:09]}  c4 {[%clk 0:00:15]} 59. Ke4 {[%clk 0:00:09]}  Kc5 {[%clk 0:00:16]} 60. Rb2 {[%clk 0:00:07]}  Re8+ {[%clk 0:00:15]} 61. Kf4 {[%clk 0:00:07]}  c3 {[%clk 0:00:16]} 62. Rf2 {[%clk 0:00:06]}  Kc4 {[%clk 0:00:16]} 63. f6 {[%clk 0:00:07]}  Kd3 {[%clk 0:00:16]} 64. Rf3+ {[%clk 0:00:07]}  Kd2 {[%clk 0:00:16]} 65. Rf2+ {[%clk 0:00:08]}  Kd3 {[%clk 0:00:17]} 66. Rf3+ {[%clk 0:00:08]}  Kd4 {[%clk 0:00:17]} 67. Rf2 {[%clk 0:00:08]}  c5 {[%clk 0:00:15]} 68. Rf1 {[%clk 0:00:07]}  c2 {[%clk 0:00:15]} 69. Kf3 {[%clk 0:00:05]}  Kc3 {[%clk 0:00:15]} 70. f7 {[%clk 0:00:05]}  Rf8 {[%clk 0:00:15]} 71. Ke2 {[%clk 0:00:06]}  Kb2 {[%clk 0:00:15]} 72. Kd2 {[%clk 0:00:05]}  Rxf7 {[%clk 0:00:16]} 73. Rg1 {[%clk 0:00:02]}  Rd7+ {[%clk 0:00:16]} 74. Ke2 {[%clk 0:00:03]}  c1=Q {[%clk 0:00:16]} 0-1


[Site "https://www.chess.com"]

[Event "Titled Tuesday Blitz February 15 Early 2022"]
[White "Nilsen, Tobias Lang"]
[Black "Zheenbekov, Nurgazy"]
[WhiteFideId "1521624"]
[BlackFideId "13800485"]
[WhiteElo "2013"]
[BlackElo "1959"]
[Result "1-0"]
[Round "06"]
[TimeControl "180+1"]
[Date "2022.02.15"]
[WhiteClock "0:00:30"]
[BlackClock "0:00:43"]

1. f4 {[%clk 0:03:00]}  d5 {[%clk 0:02:59]} 2. Nf3 {[%clk 0:03:00]}  Nf6 {[%clk 0:02:58]} 3. g3 {[%clk 0:03:01]}  g6 {[%clk 0:02:58]} 4. Bg2 {[%clk 0:03:01]}  Bg7 {[%clk 0:02:58]} 5. O-O {[%clk 0:03:02]}  O-O {[%clk 0:02:59]} 6. d3 {[%clk 0:03:03]}  c5 {[%clk 0:02:58]} 7. Nc3 {[%clk 0:03:03]}  Nc6 {[%clk 0:02:59]} 8. e4 {[%clk 0:03:04]}  dxe4 {[%clk 0:02:25]} 9. dxe4 {[%clk 0:03:05]}  e5 {[%clk 0:02:25]} 10. Qxd8 {[%clk 0:02:55]}  Rxd8 {[%clk 0:02:25]} 11. fxe5 {[%clk 0:02:56]}  Ng4 {[%clk 0:02:24]} 12. Bg5 {[%clk 0:02:55]}  Re8 {[%clk 0:02:24]} 13. Nd5 {[%clk 0:02:55]}  Rb8 {[%clk 0:02:06]} 14. Nf6+ {[%clk 0:02:19]}  Bxf6 {[%clk 0:02:05]} 15. exf6 {[%clk 0:02:19]}  h6 {[%clk 0:02:04]} 16. Bf4 {[%clk 0:02:16]}  Ra8 {[%clk 0:02:02]} 17. Bd6 {[%clk 0:01:57]}  Nxf6 {[%clk 0:01:56]} 18. Bxc5 {[%clk 0:01:46]}  Nxe4 {[%clk 0:01:56]} 19. Ba3 {[%clk 0:01:38]}  Bf5 {[%clk 0:01:48]} 20. Rae1 {[%clk 0:01:27]}  Rad8 {[%clk 0:01:18]} 21. c3 {[%clk 0:00:57]}  Bg4 {[%clk 0:01:09]} 22. Re3 {[%clk 0:00:51]}  Bxf3 {[%clk 0:01:05]} 23. Bxf3 {[%clk 0:00:48]}  Nd2 {[%clk 0:01:05]} 24. Rxe8+ {[%clk 0:00:42]}  Rxe8 {[%clk 0:01:06]} 25. Rf2 {[%clk 0:00:42]}  Re1+ {[%clk 0:01:00]} 26. Kg2 {[%clk 0:00:41]}  Ne5 {[%clk 0:00:48]} 27. Bxb7 {[%clk 0:00:32]}  Ng4 {[%clk 0:00:43]} 28. Rxd2 {[%clk 0:00:30]} 1-0


[Site "https://www.chess.com"]

[Event "Titled Tuesday Blitz February 15 Early 2022"]
[White "Orlov, Georgi"]
[Black "Singh, Ojasva"]
[WhiteFideId "2011271"]
[BlackFideId "25681958"]
[WhiteElo "2489"]
[BlackElo "1741"]
[Result "1-0"]
[Round "06"]
[TimeControl "180+1"]
[Date "2022.02.15"]
[WhiteClock "0:02:51"]
[BlackClock "0:02:24"]

1. d4 {[%clk 0:03:00]}  d5 {[%clk 0:02:59]} 2. Nf3 {[%clk 0:03:00]}  Nf6 {[%clk 0:02:59]} 3. c4 {[%clk 0:03:01]}  c6 {[%clk 0:02:58]} 4. Nc3 {[%clk 0:03:00]}  e6 {[%clk 0:02:58]} 5. e3 {[%clk 0:03:00]}  Nbd7 {[%clk 0:02:56]} 6. Bd3 {[%clk 0:03:01]}  dxc4 {[%clk 0:02:56]} 7. Bxc4 {[%clk 0:03:01]}  b5 {[%clk 0:02:57]} 8. Bd3 {[%clk 0:03:01]}  a6 {[%clk 0:02:57]} 9. e4 {[%clk 0:03:01]}  c5 {[%clk 0:02:53]} 10. e5 {[%clk 0:02:59]}  cxd4 {[%clk 0:02:52]} 11. Nxb5 {[%clk 0:02:57]}  axb5 {[%clk 0:02:43]} 12. exf6 {[%clk 0:02:56]}  Qxf6 {[%clk 0:02:30]} 13. Bg5 {[%clk 0:02:52]}  Bb4+ {[%clk 0:02:24]} 14. Kf1 {[%clk 0:02:51]} 1-0


[Site "https://www.chess.com"]

[Event "Titled Tuesday Blitz February 15 Early 2022"]
[White "Ovezdurdyyeva, Jemal"]
[Black "Al Mukhaini, Shima"]
[WhiteFideId "14001888"]
[BlackFideId "22005854"]
[WhiteElo "1946"]
[BlackElo "2399"]
[Result "0-1"]
[Round "06"]
[TimeControl "180+1"]
[Date "2022.02.15"]
[WhiteClock "0:00:08"]
[BlackClock "0:01:23"]

1. e4 {[%clk 0:03:00]}  d6 {[%clk 0:02:53]} 2. d4 {[%clk 0:02:58]}  Nf6 {[%clk 0:02:45]} 3. Nc3 {[%clk 0:02:57]}  g6 {[%clk 0:02:44]} 4. Nf3 {[%clk 0:02:55]}  Bg7 {[%clk 0:02:44]} 5. Be3 {[%clk 0:02:54]}  O-O {[%clk 0:02:45]} 6. Qd2 {[%clk 0:02:54]}  Ng4 {[%clk 0:02:44]} 7. Bg5 {[%clk 0:02:52]}  h6 {[%clk 0:02:43]} 8. Bh4 {[%clk 0:02:52]}  g5 {[%clk 0:02:43]} 9. Bg3 {[%clk 0:02:52]}  c5 {[%clk 0:02:42]} 10. h4 {[%clk 0:02:47]}  cxd4 {[%clk 0:02:33]} 11. Nxd4 {[%clk 0:02:45]}  e6 {[%clk 0:02:17]} 12. hxg5 {[%clk 0:02:29]}  hxg5 {[%clk 0:02:09]} 13. Nf3 {[%clk 0:02:20]}  f6 {[%clk 0:01:41]} 14. Bxd6 {[%clk 0:02:13]}  Rf7 {[%clk 0:01:40]} 15. Bb5 {[%clk 0:01:32]}  Nc6 {[%clk 0:01:36]} 16. Ba3 {[%clk 0:01:19]}  Rd7 {[%clk 0:01:27]} 17. O-O-O {[%clk 0:00:08]}  Rxd2 {[%clk 0:01:23]} 0-1


[Site "https://www.chess.com"]

[Event "Titled Tuesday Blitz February 15 Early 2022"]
[White "Ozdemir, Serhan Berat"]
[Black "Tuleyeva-Aketayeva, Dana"]
[WhiteFideId "6374611"]
[BlackFideId "13701932"]
[WhiteElo "1920"]
[BlackElo "1944"]
[Result "1-0"]
[Round "06"]
[TimeControl "180+1"]
[Date "2022.02.15"]
[WhiteClock "0:00:03"]
[BlackClock "0:00:02"]

1. e4 {[%clk 0:03:00]}  c5 {[%clk 0:02:56]} 2. Nf3 {[%clk 0:03:00]}  Nc6 {[%clk 0:02:54]} 3. Bb5 {[%clk 0:02:57]}  g6 {[%clk 0:02:54]} 4. Bxc6 {[%clk 0:02:55]}  dxc6 {[%clk 0:02:55]} 5. O-O {[%clk 0:02:53]}  Bg7 {[%clk 0:02:55]} 6. h3 {[%clk 0:02:51]}  Nf6 {[%clk 0:02:54]} 7. d3 {[%clk 0:02:51]}  O-O {[%clk 0:02:52]} 8. Nbd2 {[%clk 0:02:47]}  Nd7 {[%clk 0:02:51]} 9. a3 {[%clk 0:02:43]}  e5 {[%clk 0:02:50]} 10. b4 {[%clk 0:02:42]}  cxb4 {[%clk 0:02:49]} 11. axb4 {[%clk 0:02:43]}  a5 {[%clk 0:02:45]} 12. Nc4 {[%clk 0:02:40]}  a4 {[%clk 0:02:42]} 13. Bb2 {[%clk 0:02:37]}  Re8 {[%clk 0:02:40]} 14. Ra3 {[%clk 0:02:34]}  b5 {[%clk 0:02:36]} 15. Na5 {[%clk 0:02:19]}  Qc7 {[%clk 0:02:26]} 16. c4 {[%clk 0:02:18]}  c5 {[%clk 0:02:25]} 17. cxb5 {[%clk 0:01:20]}  cxb4 {[%clk 0:02:22]} 18. b6 {[%clk 0:01:19]}  Nxb6 {[%clk 0:02:05]} 19. Rxa4 {[%clk 0:01:10]}  Nxa4 {[%clk 0:01:59]} 20. Qxa4 {[%clk 0:01:11]}  Bd7 {[%clk 0:01:59]} 21. Qxb4 {[%clk 0:01:06]}  Qxa5 {[%clk 0:01:55]} 22. Qd6 {[%clk 0:01:03]}  Qb5 {[%clk 0:01:48]} 23. Rc1 {[%clk 0:00:58]}  Qxb2 {[%clk 0:01:37]} 24. Rc7 {[%clk 0:00:50]}  Be6 {[%clk 0:01:36]} 25. Ng5 {[%clk 0:00:47]}  Rac8 {[%clk 0:01:20]} 26. Nxe6 {[%clk 0:00:41]}  Rxc7 {[%clk 0:01:14]} 27. Nxc7 {[%clk 0:00:37]}  Qc1+ {[%clk 0:01:12]} 28. Kh2 {[%clk 0:00:36]}  Rc8 {[%clk 0:01:11]} 29. Nd5 {[%clk 0:00:27]}  Re8 {[%clk 0:00:50]} 30. Qd7 {[%clk 0:00:25]}  Qc8 {[%clk 0:00:44]} 31. Qxc8 {[%clk 0:00:25]}  Rxc8 {[%clk 0:00:43]} 32. Ne7+ {[%clk 0:00:26]}  Kf8 {[%clk 0:00:43]} 33. Nxc8 {[%clk 0:00:26]}  f5 {[%clk 0:00:41]} 34. Nd6 {[%clk 0:00:19]}  Ke7 {[%clk 0:00:41]} 35. Nc4 {[%clk 0:00:19]}  Ke6 {[%clk 0:00:39]} 36. Kg3 {[%clk 0:00:15]}  Bh6 {[%clk 0:00:36]} 37. Kf3 {[%clk 0:00:15]}  Bc1 {[%clk 0:00:35]} 38. g3 {[%clk 0:00:11]}  h6 {[%clk 0:00:34]} 39. Ne3 {[%clk 0:00:10]}  Bd2 {[%clk 0:00:25]} 40. h4 {[%clk 0:00:10]}  Bc1 {[%clk 0:00:18]} 41. Nc2 {[%clk 0:00:07]}  g5 {[%clk 0:00:15]} 42. hxg5 {[%clk 0:00:03]}  hxg5 {[%clk 0:00:14]} 43. exf5+ {[%clk 0:00:04]}  Kxf5 {[%clk 0:00:14]} 44. Ne3+ {[%clk 0:00:05]}  Ke6 {[%clk 0:00:10]} 45. Ke4 {[%clk 0:00:05]}  Bd2 {[%clk 0:00:08]} 46. Ng4 {[%clk 0:00:05]}  Be1 {[%clk 0:00:06]} 47. Ke3 {[%clk 0:00:03]}  Kf5 {[%clk 0:00:02]} 48. Nh2 {[%clk 0:00:03]} 1-0


[Site "https://www.chess.com"]

[Event "Titled Tuesday Blitz February 15 Early 2022"]
[White "Pinheiro, Iung Alicio de O."]
[Black "Dushyant Sharma"]
[WhiteFideId "2104350"]
[BlackFideId "25065130"]
[WhiteElo "2647"]
[BlackElo "2012"]
[Result "1/2-1/2"]
[Round "06"]
[TimeControl "180+1"]
[Date "2022.02.15"]
[WhiteClock "0:00:19"]
[BlackClock "0:00:04"]

1. e4 {[%clk 0:02:59]}  d5 {[%clk 0:02:59]} 2. exd5 {[%clk 0:02:59]}  Nf6 {[%clk 0:03:00]} 3. Be2 {[%clk 0:02:57]}  Qxd5 {[%clk 0:03:00]} 4. Nf3 {[%clk 0:02:48]}  Bg4 {[%clk 0:02:59]} 5. Nc3 {[%clk 0:02:45]}  Qd8 {[%clk 0:02:59]} 6. h3 {[%clk 0:02:38]}  Bh5 {[%clk 0:02:58]} 7. g4 {[%clk 0:02:37]}  Bg6 {[%clk 0:02:59]} 8. Ne5 {[%clk 0:02:38]}  Nbd7 {[%clk 0:02:59]} 9. Nxg6 {[%clk 0:02:31]}  hxg6 {[%clk 0:03:00]} 10. Bf3 {[%clk 0:02:32]}  c6 {[%clk 0:03:00]} 11. d4 {[%clk 0:02:29]}  e6 {[%clk 0:03:00]} 12. Qe2 {[%clk 0:02:29]}  Be7 {[%clk 0:02:59]} 13. Bf4 {[%clk 0:02:23]}  Nd5 {[%clk 0:02:57]} 14. Nxd5 {[%clk 0:02:00]}  exd5 {[%clk 0:02:39]} 15. O-O-O {[%clk 0:01:49]}  O-O {[%clk 0:02:32]} 16. Kb1 {[%clk 0:01:48]}  Re8 {[%clk 0:02:23]} 17. Qd2 {[%clk 0:01:36]}  Nb6 {[%clk 0:02:13]} 18. Be2 {[%clk 0:01:23]}  Bd6 {[%clk 0:02:03]} 19. Be3 {[%clk 0:01:19]}  Nc4 {[%clk 0:01:59]} 20. Bxc4 {[%clk 0:01:18]}  dxc4 {[%clk 0:02:00]} 21. d5 {[%clk 0:01:16]}  c5 {[%clk 0:01:59]} 22. h4 {[%clk 0:01:09]}  Be5 {[%clk 0:01:34]} 23. Qe2 {[%clk 0:01:06]}  Bxb2 {[%clk 0:00:51]} 24. Kxb2 {[%clk 0:01:00]}  Qb6+ {[%clk 0:00:48]} 25. Ka1 {[%clk 0:00:56]}  Qf6+ {[%clk 0:00:35]} 26. c3 {[%clk 0:00:44]}  Qxc3+ {[%clk 0:00:36]} 27. Qb2 {[%clk 0:00:44]}  Qa5 {[%clk 0:00:36]} 28. Bd2 {[%clk 0:00:41]}  Qa6 {[%clk 0:00:33]} 29. Bc3 {[%clk 0:00:41]}  b5 {[%clk 0:00:33]} 30. Bxg7 {[%clk 0:00:36]}  b4 {[%clk 0:00:33]} 31. Qf6 {[%clk 0:00:36]}  Qxf6+ {[%clk 0:00:19]} 32. Bxf6 {[%clk 0:00:37]}  c3 {[%clk 0:00:16]} 33. h5 {[%clk 0:00:37]}  Kh7 {[%clk 0:00:11]} 34. f4 {[%clk 0:00:31]}  Re2 {[%clk 0:00:08]} 35. f5 {[%clk 0:00:24]}  g5 {[%clk 0:00:08]} 36. Bxg5 {[%clk 0:00:23]}  a5 {[%clk 0:00:08]} 37. d6 {[%clk 0:00:19]}  a4 {[%clk 0:00:08]} 38. d7 {[%clk 0:00:20]}  b3 {[%clk 0:00:09]} 39. d8=Q {[%clk 0:00:20]}  Rxa2+ {[%clk 0:00:08]} 40. Kb1 {[%clk 0:00:19]}  Rb2+ {[%clk 0:00:09]} 41. Kc1 {[%clk 0:00:18]}  Rc2+ {[%clk 0:00:06]} 42. Kb1 {[%clk 0:00:19]}  Rb2+ {[%clk 0:00:05]} 43. Ka1 {[%clk 0:00:19]}  Ra2+ {[%clk 0:00:05]} 44. Kb1 {[%clk 0:00:19]}  Rb2+ {[%clk 0:00:04]} 1/2-1/2


[Site "https://www.chess.com"]